Cogmind - Beta 15 @@@ ROGUE MODE // 2025.08.20 @ 17:15:48 Player: jumpy Result: Self-destructed Performance ------------- Evolutions (1) 500 Regions Visited (3) 600 Robots Destroyed (15) 75 Value Destroyed (259) 259 Prototype IDs (0) 0 Alien Tech Used (0) 0 Bonus (0) 0 TOTAL SCORE: 1434 Bonus ------- None Cogmind --------- Core Integrity 366/400 Matter 255/300 Energy 250/250 System Corruption 0% Temperature Cool (0) Movement Walking (120) Location -9/Materials Parts ------- > --- POWER (1) -------- Ion Engine > --- PROPULSION (3) --- Aluminum Leg Improved Aluminum Leg Improved Aluminum Leg > --- UTILITY (3) ------ Small Storage Unit Seismic Detector > --- WEAPON (2) ------- Assault Rifle Autogun > --- INVENTORY (8) ---- Light Ion Engine Aluminum Leg Aluminum Leg Wheel Improved Terrain Scanner Melee Analysis Suite Small Laser Ripper Peak State ------------ > --- POWER ------------ Ion Engine > --- PROPULSION ------- Aluminum Leg Improved Aluminum Leg Improved Aluminum Leg > --- UTILITY ---------- Small Storage Unit Seismic Detector > --- WEAPON ----------- Assault Rifle Autogun > --- INVENTORY -------- Light Ion Engine Aluminum Leg Aluminum Leg Wheel Improved Terrain Scanner Melee Analysis Suite Small Laser Ripper [Rating: 12] Favorites ----------- Power Ion Engine Engine Ion Engine Propulsion Aluminum Leg Leg Aluminum Leg Utility Small Storage Unit Device Seismic Detector Storage Small Storage Unit Weapon Assault Rifle Ballistic Gun Assault Rifle Build | -11 -10 -10 -9 ------- Run | Yrd Mat Min Mat Slots Evolved 2 | . . . 2 Power . | . . . . Propulsion 1 | . . . 1 Utility 1 | . . . 1 Weapon . | . . . . Parts Attached 13 | 8 2 . 3 Power 1 | 1 . . . Engine 1 | 1 . . . Core . | . . . . Reactor . | . . . . Propulsion 5 | 2 1 . 2 Treads . | . . . . Leg 5 | 2 1 . 2 Wheel . | . . . . Hover . | . . . . Flight . | . . . . Utility 4 | 3 1 . . Device 3 | 2 1 . . Storage 1 | 1 . . . Processor . | . . . . Hackware . | . . . . Protection . | . . . . Artifact . | . . . . Weapon 3 | 2 . . 1 Energy Gun . | . . . . Energy Cannon . | . . . . Ballistic Gun 3 | 2 . . 1 Ballistic Cannon . | . . . . Launcher . | . . . . Special Weapon . | . . . . Impact Weapon . | . . . . Slashing Weapon . | . . . . Piercing Weapon . | . . . . Special Melee Weapon . | . . . . Unidentified Prototypes . | . . . . Parts Lost 1 | . 1 . . Power . | . . . . Propulsion . | . . . . Utility 1 | . 1 . . Weapon . | . . . . Highest Loss Streak 1 | . 1 . . To Critical Strikes . | . . . . Average Backups 5 | 4 6 6 6 Power . | . 1 1 1 Propulsion 2 | 1 2 3 2 Utility 1 | . 1 1 1 Weapon 1 | . 1 1 2 Tool/Special . | . . . . Unused Backups 7 | . . . 7 Power 1 | . . . 1 Propulsion 2 | . . . 2 Utility 2 | . . . 2 Weapon 2 | . . . 2 Tool/Special . | . . . . Average Slot Usage (%) 95 | . 97 100 88 Engine 13 | . 14 14 11 Leg 29 | . 28 28 33 Device 12 | . 11 14 11 Storage 13 | . 14 14 11 Ballistic Gun 26 | . 28 28 22 Peak Build Rating 12 | 7 7 8 12 Average Rating 7 | 6 6 7 9 On Entrance 5 | . 7 7 8 Naked Turns . | . . . . Heaviest Build 16 | 14 14 14 16 Greatest Support 36 | 20 20 20 36 Greatest Overweight (x) . | . . . . Average Overweight (x) . | . . . . Largest Inventory Capacity 8 | 8 8 8 8 Average Capacity 7 | 7 8 8 8 Most Carried 8 | 6 7 7 8 Average Carried 5 | 4 6 6 6 Final Capacity 8 | 8 8 8 8 Final Carried 8 | 6 6 7 8 Class Distribution -------------------- 100% | Mutant Dominant Class ---------------- Mutant | -10/Materials Mutant | -10/Mines Mutant | -9/Materials Resources | -11 -10 -10 -9 ----------- Run | Yrd Mat Min Mat Matter Collected 601 | 422 113 . 66 Remotely . | . . . . Salvage Created 444 | 205 199 . 40 Parts 37 | 27 7 . 3 Haulers Intercepted . | . . . . Recyclers Shooed . | . . . . Parts Field Recycled . | . . . . Retrieved Matter . | . . . . Parts Self-Destructed . | . . . . Prevented . | . . . . Kills | -11 -10 -10 -9 ------- Run | Yrd Mat Min Mat Combat Hostiles Destroyed 5 | . 4 . 1 Guns 5 | . 4 . 1 Classes Destroyed 4 | 3 1 . . Worker 1 | 1 . . . Tunneler 8 | 8 . . . Recycler 1 | 1 . . . Grunt 5 | . 4 . 1 Best Kill Streak 4 | 3 4 . 1 Combat Bots Only 4 | . 4 . 1 Max Kills in Single Turn 1 | 1 1 . 1 Gunslinging . | . . . . Exploded . | . . . . Melee . | . . . . Uniques/NPCs Destroyed . | . . . . Combat | -11 -10 -10 -9 -------- Run | Yrd Mat Min Mat Hostile Shots Fired 39 | . 29 . 10 Missed 12 | . 9 . 3 Hits 27 | . 20 . 7 Projectile 27 | . 20 . 7 Damage Taken 371 | . 264 . 107 Core 60 | . 26 . 34 Absorbed by Shields . | . . . . Core Remaining (%) 94 | 100 . 89 . Volleys Fired 74 | 39 21 3 11 Largest 2 | 2 2 2 2 Hottest 43 | 40 40 40 43 Shots Fired 148 | 78 42 6 22 Gun 148 | 78 42 6 22 Cannon . | . . . . Launcher . | . . . . Special . | . . . . Kinetic 148 | 78 42 6 22 Thermal . | . . . . Explosive . | . . . . Electromagnetic . | . . . . Robot Hit Streak 11 | 6 11 3 7 Robot Miss Streak 6 | 6 2 1 3 Penetration Max . | . . . . Secondary Targets . | . . . . Shots Hit Robots 92 | 40 34 4 14 Core Hits 30 | 13 10 1 6 Critical Kills . | . . . . Critical Parts Destroyed 2 | 2 . . . Critical Strikes 2 | 2 . . . Destroy 2 | 2 . . . Melee Attacks . | . . . . Impact . | . . . . Slashing . | . . . . Piercing . | . . . . Sneak Attacks . | . . . . Combat Hostiles . | . . . . Follow-up Attacks . | . . . . Damage Inflicted 1034 | 460 368 42 164 Guns 1034 | 460 368 42 164 Cannons . | . . . . Explosions . | . . . . Melee . | . . . . Ramming . | . . . . Kinetic 1034 | 460 368 42 164 Thermal . | . . . . Explosive . | . . . . Electromagnetic . | . . . . Impact . | . . . . Slashing . | . . . . Piercing . | . . . . Highest Corruption . | . . . . Average Corruption . | . . . . Corruption Purged . | . . . . Corruption Blocked . | . . . . Overload Shots . | . . . . Overflow Damage . | . . . . Projectiles . | . . . . Explosions . | . . . . Melee . | . . . . Knockbacks . | . . . . Impact . | . . . . Kinetic . | . . . . Secondary . | . . . . Self-Inflicted Damage . | . . . . Shots . | . . . . Rammed . | . . . . Targets Rammed . | . . . . Kicked . | . . . . Crushed . | . . . . Highest Temperature 12 | . 12 . 7 Average Temperature 7 | . 8 . 5 Received Heat Transfer 216 | . 156 . 60 Siege Activations . | . . . . Martial Activations . | . . . . Shielding Activations . | . . . . Robots Disrupted . | . . . . Combat Hostiles . | . . . . Robots Corrupted . | . . . . Combat Hostiles . | . . . . Parts Fried . | . . . . Impact Corruptions . | . . . . Robots Melted . | . . . . Combat Hostiles . | . . . . Parts Melted . | . . . . Heat Transferred . | . . . . Parts Sabotaged . | . . . . Parts Stolen . | . . . . Parts Stripped . | . . . . Power Chain Reactions . | . . . . Alert | -11 -10 -10 -9 ------- Run | Yrd Mat Min Mat Maximum Alert Level . | . . . . Low Security (%) 100 | 100 100 100 100 Level 1 . | . . . . Level 2 . | . . . . Level 3 . | . . . . Level 4 . | . . . . Level 5 . | . . . . High Security . | . . . . Max Security . | . . . . Peak Influence 115 | 10 115 33 20 Initial 33 | . . 33 . Average 11 | 1 36 8 1 Influence Increases 215 | 50 145 . 20 Destroy 0b10 Robot/C 100 | . 80 . 20 Destroy 0b10 Robot/NC 50 | 50 . . . Destroy Leader 20 | . 20 . . Lose Combat Pursuer 45 | . 45 . . Influence Decreases 215 | 50 60 85 20 Entered New Map 52 | . . 52 . Time Decay 153 | 50 50 33 20 Lost Part 10 | . 10 . . Squads Dispatched 2 | . 1 . 1 Investigation 1 | . . . 1 Extermination . | . . . . Reinforcement 1 | . 1 . . Assault . | . . . . Garrison . | . . . . Intercept . | . . . . Searches Triggered . | . . . . Construction Impeded . | . . . . Haulers Reinforced . | . . . . Active Scanning Responses . | . . . . Cargo Convoy Interrupts . | . . . . Stealth | -11 -10 -10 -9 --------- Run | Yrd Mat Min Mat Distress Signals 1 | . 1 . . Communications Jammed . | . . . . Distress Signals . | . . . . Times Spotted 15 | . 9 . 6 Peak Tracking Total 6 | . 6 . 4 Tactical Retreats 1 | . 1 . . Traps | -11 -10 -10 -9 ------- Run | Yrd Mat Min Mat Traps Triggered 1 | . . . 1 Indirectly . | . . . . Trap Hack Attempts . | . . . . Triggered . | . . . . Disarmed . | . . . . Reprogrammed . | . . . . Reused . | . . . . Traps Extracted . | . . . . Installed . | . . . . Triggered . | . . . . Machines | -11 -10 -10 -9 ---------- Run | Yrd Mat Min Mat Machines Disabled . | . . . . Max in Single Turn . | . . . . Machines Repaired . | . . . . Machines Dismantled . | . . . . Machines Sabotaged . | . . . . Overloaded Fab Kills . | . . . . Hacking | -11 -10 -10 -9 --------- Run | Yrd Mat Min Mat Machines Accessed 1 | . 1 . . Terminals 1 | . 1 . . Fabricators . | . . . . Repair Stations . | . . . . Recycling Units . | . . . . Scanalyzers . | . . . . Garrison Access . | . . . . Total Hacks 2 | . 2 . . Successful 1 | . 1 . . Failed 1 | . 1 . . Catastrophic . | . . . . Database Lockouts . | . . . . Manual . | . . . . Terminals 2 | . 2 . . Fabricators . | . . . . Repair Stations . | . . . . Recycling Units . | . . . . Scanalyzers . | . . . . Garrison Access . | . . . . Terminal Hacks 1 | . 1 . . Dispatch Records 1 | . 1 . . Fabricator Hacks . | . . . . Repair Station Hacks . | . . . . Recycling Unit Hacks . | . . . . Scanalyzer . | . . . . Garrison Access Hacks . | . . . . Unauthorized Hacks . | . . . . Terminals . | . . . . Fabricators . | . . . . Repair Stations . | . . . . Recycling Units . | . . . . Scanalyzers . | . . . . Garrison Access . | . . . . Data Cores Recovered . | . . . . Used . | . . . . Hacking Detections 1 | . 1 . . Full Trace Events . | . . . . Feedback Events . | . . . . Feedback Blocked . | . . . . Robot Schematics Acquired . | . . . . Robots Built . | . . . . Authchips . | . . . . Time . | . . . . Total Robot Build Rating . | . . . . Part Schematics Acquired . | . . . . Parts Built . | . . . . Authchips . | . . . . Time . | . . . . Total Part Build Rating . | . . . . Parts Repaired . | . . . . Time . | . . . . Parts Recycled . | . . . . Recycled Matter . | . . . . Retrieved Matter . | . . . . Retrieved Components . | . . . . Parts Scanalyzed . | . . . . Part Schematics Acquired . | . . . . Parts Damaged . | . . . . Bothacking | -11 -10 -10 -9 ------------ Run | Yrd Mat Min Mat Used RIF Installer . | . . . . Robots Hacked . | . . . . Non-combat . | . . . . Combat . | . . . . Robot Hacks Applied . | . . . . Relay Couplers Released . | . . . . Fabnet Peak Effective % . | . . . . Robots Rewired . | . . . . Allies Hacked . | . . . . Hacks Repelled . | . . . . Allies | -11 -10 -10 -9 -------- Run | Yrd Mat Min Mat Total Allies . | . . . . Largest Group . | . . . . Highest-Rated Group . | . . . . Highest-Rated Ally . | . . . . Total Orders . | . . . . Ally Attacks . | . . . . Total Damage . | . . . . Kills . | . . . . Allies Corrupted . | . . . . Allies Melted . | . . . . Intel | -11 -10 -10 -9 ------- Run | Yrd Mat Min Mat Active Infowar (turns) 799 | 234 191 172 202 Seismic 799 | 234 191 172 202 Robot Analysis Total . | . . . . Derelict Logs Recovered . | . . . . Drone Launches . | . . . . Drone Recoveries . | . . . . Exploration | -11 -10 -10 -9 ------------- Run | Yrd Mat Min Mat Turns Passed 953 | 346 233 172 202 Spaces Moved 537 | 184 81 136 136 Core 3 | 3 . . . Treads . | . . . . Legs 534 | 181 81 136 136 Wheels . | . . . . Hover . | . . . . Flight . | . . . . Fastest Speed 50 | 50 120 120 120 Average Speed 119 | 118 120 120 120 Slowest Speed 120 | 120 120 120 120 Overloaded Moves . | . . . . Propulsion Burnouts . | . . . . Robots Hopped . | . . . . Potential Cave-ins . | . . . . Cave-ins Triggered . | . . . . Exploration Rate (%) 23 | 7 23 47 16 Regions Visited 3 Branch Regions 1 Pre-discovered Areas . | . . . . Known Exits Taken . | . . . . Unknown Exits Taken 3 | 1 1 1 . Scrap Searched . | . . . . Spaces Dug . | . . . . Terrain Destroyed . | . . . . Melee . | . . . . Projectile . | . . . . AOE . | . . . . Terrain Rammed . | . . . . Walls Destroyed . | . . . . Machines Disabled . | . . . . Actions | -11 -10 -10 -9 --------- Run | Yrd Mat Min Mat Total 710 | 237 178 139 156 Wait 75 | . 75 . . Move 534 | 183 80 135 136 Hop . | . . . . Pick Up 9 | 6 . 1 2 Fast Attach 7 | 7 . . . Attach 2 | . 1 . 1 Detach . | . . . . Swap 5 | 1 1 . 3 Drop 4 | 1 . . 3 Fire 74 | 39 21 3 11 Melee . | . . . . Ram . | . . . . Kick . | . . . . Crush . | . . . . Escape Stasis . | . . . . Rewire . | . . . . Trap . | . . . . Miscellaneous . | . . . . Route ------- -11/Scrapyard -10/Materials -10/Mines -9/Materials History --------- Turn | Location | Event 4 | -11/Scrapyard | Discovered new exit (range 16) 347 | -11/Scrapyard | Entered Materials 348 | -10/Materials | Build established: Mutant 571 | -10/Materials | Discovered new exit (range 8) 580 | -10/Materials | Entered Mines 728 | -10/Mines | Discovered new exit (range 15) 735 | -10/Mines | A weapon hastily lodged in a ceiling crevice suddenly fell to the ground 752 | -10/Mines | Entered Materials 752 | -9/Materials | Evolved 2 slots: Propulsion x1, Utility x1 954 | -9/Materials | Self-destructed Last Messages --------------- 00901_ G-34 Mercenary destroyed. 00911_ Acquired 42 matter. 00914_ Dropped Com. Wheel. 00914_ Acquired Melee Analysis Suite. 00917_ R-06 Scavenger collects Sml. Laser. 00919_ Dropped Aluminum Leg. 00919_ Acquired Aluminum Leg. 00919_ Acquired 2 matter. 00923_ R-06 Scavenger collects Heat Sink. 00923_ R-06 Scavenger collects Aluminum Leg. 00929_ R-06 Scavenger collects Com. Wheel. 00932_ Triggered Alarm Trap. 00932_ An alarm sounds. 00932_ ALERT: Alarm triggered, dispatching investigation squad. 00937_ C-30 ARC bursts open, deploying its payload. 00937_ G-47 Trooper unfolds itself. 00937_ G-34 Mercenary unfolds itself. 00937_ Dropped Lgt. Assault Rifle. 00945_ U-05 Engineer lays Concrete. 00948_ R-06 Scavenger collects Lgt. Assault Rifle. Map ----- +----------------------------------------------------+ | ???????????????????????????????????????????????? | | ???????????????????????????????????????????????? | | ???????????????????????????????????????????????? | | ???????????????????????????????????????????????? | | ???????????????????????????????????????????????? | | ???????????????????????????????????????????????? | | ???????????????????????????????????????????????? | | ???????????????????????????????????????????????? | | ???????????????????????????????????????????????? | | ???????????????????????????????????????????????? | | ???????????????????????????????????????????????? | | ???????????????????????????????????????????????? | | ???????????????????????????????????????????????? | | ???????????????????????????????????????????????? | | ???????????????????????????????????????????????? | | ???????????????????????????????????????????????? | | ???????????????????????????????????????????????? | | ???????????????????????????????????????????????? | | ??????????????????????##???????????????????????? | | ??????????????????????# """"""??#??????????????? | | ????????????????????### """"""" #??????????????? | | ?????????????????????"g%""""""" #??????????????? | | ??????????????????????#Y""""""" #??????????????? | | ??????????????????????#g""""""" #??????????????? | | ??????????????????????# #??????????????? | | ??????????????????????# @ #??????????????? | | ??????????????????????# #??????????????? | | ??????????????????????#####r#####??????????????? | | ?????????????????????????# #?????????????????? | | ???????????????????????### #?????????????????? | | ???????????????????????+ #?????????????????? | | ???????????????????????### #?????????????????? | | ?????????????????????????# #??#####??????????? | | ?????????????????????????# #?? #??????????? | | ?????????????????????????# #?"" #??????????? | | ?????????????????????????# #?"" #??????????? | | ?????????????????????????# #""" #??????????? | | ?????????????????????????# # #??????????? | | ???????????????????????# % + #??????????? | | ? ???????????????????????# ###########???????? | | ? ??????????????????????# ## #???????? | | ?# ??????????????????????# ## !#???????? | | ?# ?????????????????????# ## #???????? | | ?# ?????????????######### ## #???????? | | ?# ?????????????# ! # ## #???????? | | ?# ????????????# = /%+ ## % #???????? | | ?# ????????????# [# ## #???????? | | ## #???????????######### ## #???????? | | # #################### ## #???????? | | # ###+######???????? | +----------------------------------------------------+ Best States ------------- Heat Dissipation 28 Energy Generation 10 Energy Capacity 250 Matter Stores 300 Matter Capacity 300 Sight Range 16 Terrain Scan Density 10 Evasion (%) 55 Item Schematics ----------------- None Robot Schematics ------------------ None Fabricated ------------ Nothing Repaired ---------- Nothing Alien Tech Used ----------------- None Achievements -------------- None Challenges ------------ None Game ------ Seed DeflectorImpulseArmor Manual? 0 Play Time 00:05:12 Cumulative 195.0 hours Start 2025.08.20 @ 17:11:33 End 2025.08.20 @ 17:15:48 Sessions 1 Manual Loads 0 Difficulty Rogue Special Mode None Game No. 471 Rogue 471 Adventurer 0 Explorer 0 Win Type - Total 8 Types 6/0/1/1/0/0/0/0/0/0 Lore% 76 Gallery% 66 Achievement% 52 Wizard Run 0 Options --------- Layout 0 ASCII 0 Keyboard 0 Movement Numpad Keybinds 0 Fullscreen 2 Font 18/Terminus Map View 76x50 Zoom Use 0% Tactical HUD 1 Map Filters NONE Filters SATURATION(100) Steam 1 RUN: a945fecc-311a-440c-9e57-fd1cac7af32b